[Event "*** Titled Tuesday Blitz"]
[Site "Chess.com"]
[Date "2020.05.19"]
[Round "3"]
[White "colegiodemadrid"]
[Black "KafkaesqueKnight"]
[Result "0-1"]
[WhiteElo "2367"]
[BlackElo "2158"]
[TimeControl "180+1"]
[EndTime "12:28:55 PDT"]
[Termination "KafkaesqueKnight won by checkmate"]

1. e4 {[%clk 0:02:50.1]} 1... c5 {[%clk 0:02:59.1]} 2. Nf3 {[%clk 0:02:39.8]}
2... d6 {[%clk 0:02:59]} 3. d4 {[%clk 0:02:37.4]} 3... cxd4 {[%clk 0:02:59.9]}
4. Nxd4 {[%clk 0:02:37.7]} 4... Nf6 {[%clk 0:03:00.2]} 5. Nc3 {[%clk 0:02:38.1]}
5... a6 {[%clk 0:03:00.4]} 6. Be3 {[%clk 0:02:33.8]} 6... e5 {[%clk 0:03:00.3]}
7. Nb3 {[%clk 0:02:32.3]} 7... Be6 {[%clk 0:03:00.3]} 8. f3 {[%clk 0:02:32.4]}
8... b5 {[%clk 0:03:00.4]} 9. Qd2 {[%clk 0:02:32.6]} 9... Nbd7 {[%clk
0:02:59.9]} 10. O-O-O {[%clk 0:02:31.9]} 10... Nb6 {[%clk 0:02:59.4]} 11. Na5
{[%clk 0:02:30.9]} 11... Qc7 {[%clk 0:02:55.1]} 12. g4 {[%clk 0:02:30.1]} 12...
Rc8 {[%clk 0:02:48.8]} 13. Kb1 {[%clk 0:02:25.2]} 13... Be7 {[%clk 0:02:18.4]}
14. g5 {[%clk 0:02:23.2]} 14... Nh5 {[%clk 0:02:17.4]} 15. Nd5 {[%clk
0:02:23.3]} 15... Nxd5 {[%clk 0:02:01.3]} 16. exd5 {[%clk 0:02:22.2]} 16... Bxd5
{[%clk 0:01:54.2]} 17. Qxd5 {[%clk 0:02:08.1]} 17... Qxa5 {[%clk 0:01:53.5]} 18.
Bh3 {[%clk 0:02:05.1]} 18... O-O {[%clk 0:01:28.6]} 19. Bg4 {[%clk 0:02:05.2]}
19... Nf4 {[%clk 0:01:12.4]} 20. Bxf4 {[%clk 0:02:03.5]} 20... Rc5 {[%clk
0:01:01.5]} 21. Qb7 {[%clk 0:01:45.5]} 21... Rc7 {[%clk 0:00:59.8]} 22. Qe4
{[%clk 0:01:39.1]} 22... exf4 {[%clk 0:00:46.2]} 23. Qxf4 {[%clk 0:01:34.5]}
23... Rc4 {[%clk 0:00:41.6]} 24. Qf5 {[%clk 0:01:29.4]} 24... g6 {[%clk
0:00:27.2]} 25. Qd5 {[%clk 0:01:26.2]} 25... Rc5 {[%clk 0:00:26.2]} 26. Qe4
{[%clk 0:01:23.6]} 26... Bxg5 {[%clk 0:00:23.8]} 27. f4 {[%clk 0:01:20.7]} 27...
Bf6 {[%clk 0:00:19.9]} 28. h4 {[%clk 0:01:09.4]} 28... Rc4 {[%clk 0:00:16.9]}
29. Qe3 {[%clk 0:00:59.4]} 29... Qb4 {[%clk 0:00:15.3]} 30. Qb3 {[%clk
0:00:50.2]} 30... Rxf4 {[%clk 0:00:14.1]} 31. Rhg1 {[%clk 0:00:32.7]} 31... Rxg4
{[%clk 0:00:12.5]} 32. Qxb4 {[%clk 0:00:31.3]} 32... Rxb4 {[%clk 0:00:13.4]} 33.
h5 {[%clk 0:00:30.4]} 33... Rxb2+ {[%clk 0:00:12.7]} 34. Kc1 {[%clk 0:00:29.9]}
34... Rxa2 {[%clk 0:00:12.6]} 35. hxg6 {[%clk 0:00:29]} 35... Bc3 {[%clk
0:00:06.3]} 36. gxh7+ {[%clk 0:00:12.7]} 36... Kh8 {[%clk 0:00:06]} 37. Rh1
{[%clk 0:00:13]} 37... Ra1# {[%clk 0:00:04.6]} 0-1

[Event "*** Titled Tuesday Blitz"]
[Site "Chess.com"]
[Date "2020.05.19"]
[Round "3"]
[White "Too_Stupid_To_Play"]
[Black "PIwan"]
[Result "1-0"]
[WhiteElo "2302"]
[BlackElo "2504"]
[TimeControl "180+1"]
[EndTime "12:28:57 PDT"]
[Termination "Too_Stupid_To_Play won by resignation"]

1. Nf3 {[%clk 0:03:00.9]} 1... d5 {[%clk 0:02:59.5]} 2. c4 {[%clk 0:03:01.7]}
2... c6 {[%clk 0:02:53]} 3. b3 {[%clk 0:03:01.2]} 3... Bg4 {[%clk 0:02:51.1]} 4.
Ne5 {[%clk 0:03:01.3]} 4... Bf5 {[%clk 0:02:49.5]} 5. Bb2 {[%clk 0:03:01.9]}
5... Nf6 {[%clk 0:02:49.5]} 6. e3 {[%clk 0:03:02.1]} 6... e6 {[%clk 0:02:49.1]}
7. Be2 {[%clk 0:03:02.5]} 7... Bd6 {[%clk 0:02:48.4]} 8. O-O {[%clk 0:03:02.9]}
8... O-O {[%clk 0:02:48.3]} 9. d4 {[%clk 0:02:59.2]} 9... Nfd7 {[%clk
0:02:46.5]} 10. Nd2 {[%clk 0:02:57.8]} 10... Nxe5 {[%clk 0:02:46]} 11. dxe5
{[%clk 0:02:58.3]} 11... Be7 {[%clk 0:02:42.4]} 12. Nf3 {[%clk 0:02:58.5]} 12...
Nd7 {[%clk 0:02:41.6]} 13. Qd2 {[%clk 0:02:53]} 13... a5 {[%clk 0:02:33.4]} 14.
Rfd1 {[%clk 0:02:52.2]} 14... a4 {[%clk 0:02:32.1]} 15. Rac1 {[%clk 0:02:51.6]}
15... axb3 {[%clk 0:02:31.3]} 16. axb3 {[%clk 0:02:52.4]} 16... Ra2 {[%clk
0:02:31.6]} 17. Ra1 {[%clk 0:02:52.5]} 17... Qa8 {[%clk 0:02:27.4]} 18. Nd4
{[%clk 0:02:33.5]} 18... Rxa1 {[%clk 0:01:19]} 19. Rxa1 {[%clk 0:02:28.7]} 19...
Qb8 {[%clk 0:01:19.5]} 20. Nxf5 {[%clk 0:02:20.5]} 20... exf5 {[%clk 0:01:20.4]}
21. cxd5 {[%clk 0:02:18.3]} 21... Nxe5 {[%clk 0:01:20.6]} 22. dxc6 {[%clk
0:01:21.3]} 22... Nxc6 {[%clk 0:01:21.5]} 23. Qc2 {[%clk 0:01:04.9]} 23... f4
{[%clk 0:01:08.3]} 24. e4 {[%clk 0:00:41.7]} 24... Qd6 {[%clk 0:01:02.8]} 25.
Rd1 {[%clk 0:00:38.4]} 25... Qg6 {[%clk 0:00:56.8]} 26. Kh1 {[%clk 0:00:24.5]}
26... Bf6 {[%clk 0:00:49.5]} 27. Bd3 {[%clk 0:00:16.4]} 27... Bxb2 {[%clk
0:00:35.7]} 28. Qxb2 {[%clk 0:00:17.3]} 28... Rd8 {[%clk 0:00:35.7]} 29. Qe2
{[%clk 0:00:09.1]} 29... Nd4 {[%clk 0:00:31.6]} 30. Qb2 {[%clk 0:00:09.4]} 30...
f3 {[%clk 0:00:29.9]} 31. gxf3 {[%clk 0:00:04.3]} 31... Nxf3 {[%clk 0:00:17.4]}
32. Qe2 {[%clk 0:00:04.5]} 32... Ra8 {[%clk 0:00:17.3]} 33. Qxf3 {[%clk
0:00:04.1]} 33... h6 {[%clk 0:00:17.5]} 34. e5 {[%clk 0:00:03]} 34... Re8 {[%clk
0:00:16.6]} 35. Bxg6 {[%clk 0:00:03.3]} 1-0

[Event "*** Titled Tuesday Blitz"]
[Site "Chess.com"]
[Date "2020.05.19"]
[Round "3"]
[White "Manukyan_Artak"]
[Black "bmt011"]
[Result "1-0"]
[WhiteElo "2298"]
[BlackElo "2036"]
[TimeControl "180+1"]
[EndTime "12:28:57 PDT"]
[Termination "Manukyan_Artak won on time"]

1. e4 {[%clk 0:03:00.9]} 1... e6 {[%clk 0:02:59.4]} 2. d4 {[%clk 0:03:00.5]}
2... d5 {[%clk 0:02:59.9]} 3. e5 {[%clk 0:03:00.8]} 3... c5 {[%clk 0:02:59.3]}
4. c3 {[%clk 0:03:01.2]} 4... Nc6 {[%clk 0:02:59.8]} 5. Nf3 {[%clk 0:03:01.1]}
5... Qb6 {[%clk 0:03:00.2]} 6. a3 {[%clk 0:02:58.9]} 6... cxd4 {[%clk 0:02:56]}
7. cxd4 {[%clk 0:02:57.7]} 7... Nh6 {[%clk 0:02:54.3]} 8. b4 {[%clk 0:02:57]}
8... Nf5 {[%clk 0:02:53.4]} 9. Bb2 {[%clk 0:02:57.2]} 9... a5 {[%clk 0:02:39.8]}
10. b5 {[%clk 0:02:51]} 10... a4 {[%clk 0:02:40.2]} 11. g4 {[%clk 0:02:46.6]}
11... Nfe7 {[%clk 0:02:38.4]} 12. Nc3 {[%clk 0:02:40.1]} 12... Na7 {[%clk
0:01:18.9]} 13. Nxa4 {[%clk 0:02:36.2]} 13... Qd8 {[%clk 0:01:18.7]} 14. Qb3
{[%clk 0:02:13.4]} 14... Ng6 {[%clk 0:01:14.8]} 15. h4 {[%clk 0:02:10]} 15... h5
{[%clk 0:01:06]} 16. g5 {[%clk 0:02:08.2]} 16... f6 {[%clk 0:01:06.3]} 17. Rc1
{[%clk 0:01:41.8]} 17... Bd7 {[%clk 0:01:02.2]} 18. Nc5 {[%clk 0:01:40.4]} 18...
fxe5 {[%clk 0:00:46.9]} 19. dxe5 {[%clk 0:01:31]} 19... Bxc5 {[%clk 0:00:30.7]}
20. Rxc5 {[%clk 0:01:29.2]} 20... Qb6 {[%clk 0:00:31.3]} 21. Bd4 {[%clk
0:01:27.9]} 21... O-O {[%clk 0:00:22.7]} 22. Qe3 {[%clk 0:01:18.2]} 22... Qa5+
{[%clk 0:00:18.4]} 23. Bc3 {[%clk 0:01:04.6]} 23... Qxa3 {[%clk 0:00:17.7]} 24.
Be2 {[%clk 0:00:53.6]} 24... b6 {[%clk 0:00:17.7]} 25. Rc7 {[%clk 0:00:53]}
25... Bxb5 {[%clk 0:00:17.5]} 26. O-O {[%clk 0:00:32.5]} 26... Bxe2 {[%clk
0:00:15.7]} 27. Qxe2 {[%clk 0:00:33.4]} 27... Nb5 {[%clk 0:00:14.8]} 28. Qxb5
{[%clk 0:00:31.1]} 28... Rxf3 {[%clk 0:00:07.5]} 29. Qd7 {[%clk 0:00:31.1]}
29... Qf8 {[%clk 0:00:07.8]} 30. Qxe6+ {[%clk 0:00:30.7]} 30... Kh7 {[%clk
0:00:06.9]} 31. Qxd5 {[%clk 0:00:26.7]} 31... Qf4 {[%clk 0:00:04.9]} 32. Rd1
{[%clk 0:00:15.7]} 32... Qg4+ {[%clk 0:00:03.7]} 33. Kf1 {[%clk 0:00:16]} 33...
Rxf2+ {[%clk 0:00:04.3]} 34. Kxf2 {[%clk 0:00:16.1]} 34... Rf8+ {[%clk
0:00:04.8]} 35. Ke1 {[%clk 0:00:15.3]} 35... Qg3+ {[%clk 0:00:04.9]} 36. Kd2
{[%clk 0:00:15.3]} 36... Rf2+ {[%clk 0:00:04.4]} 37. Kc1 {[%clk 0:00:15.6]}
37... Qxc3+ {[%clk 0:00:04.8]} 38. Rxc3 {[%clk 0:00:14.5]} 1-0

[Event "*** Titled Tuesday Blitz"]
[Site "Chess.com"]
[Date "2020.05.19"]
[Round "3"]
[White "diablanni"]
[Black "giantslayer83"]
[Result "0-1"]
[WhiteElo "2329"]
[BlackElo "2688"]
[TimeControl "180+1"]
[EndTime "12:28:58 PDT"]
[Termination "giantslayer83 won by resignation"]

1. e4 {[%clk 0:02:59.5]} 1... e5 {[%clk 0:02:59.7]} 2. Nf3 {[%clk 0:02:59.1]}
2... Nc6 {[%clk 0:02:59.9]} 3. d4 {[%clk 0:02:58.7]} 3... exd4 {[%clk
0:02:59.7]} 4. Nxd4 {[%clk 0:02:59]} 4... Bc5 {[%clk 0:03:00.4]} 5. Nxc6 {[%clk
0:02:58.7]} 5... Qf6 {[%clk 0:03:00.4]} 6. Qf3 {[%clk 0:02:55.5]} 6... dxc6
{[%clk 0:03:00.4]} 7. Nc3 {[%clk 0:02:47.4]} 7... Be6 {[%clk 0:02:58.6]} 8. Be3
{[%clk 0:02:46.1]} 8... Bb4 {[%clk 0:02:55.9]} 9. Qxf6 {[%clk 0:02:46.2]} 9...
Nxf6 {[%clk 0:02:55.3]} 10. f3 {[%clk 0:02:47.1]} 10... O-O-O {[%clk 0:02:55]}
11. Bd2 {[%clk 0:02:45.6]} 11... Nd7 {[%clk 0:02:51.7]} 12. a3 {[%clk
0:02:44.7]} 12... Bd6 {[%clk 0:02:45.6]} 13. O-O-O {[%clk 0:02:37.8]} 13... f5
{[%clk 0:02:45.2]} 14. Bg5 {[%clk 0:02:24.3]} 14... Rde8 {[%clk 0:02:44.4]} 15.
exf5 {[%clk 0:02:24.3]} 15... Bxf5 {[%clk 0:02:44.3]} 16. Bd3 {[%clk 0:02:24.1]}
16... Bxd3 {[%clk 0:02:41.1]} 17. Rxd3 {[%clk 0:02:23.8]} 17... h6 {[%clk
0:02:33.6]} 18. Bd2 {[%clk 0:02:21.6]} 18... Ne5 {[%clk 0:02:23.1]} 19. Re3
{[%clk 0:02:17.5]} 19... Nc4 {[%clk 0:02:23]} 20. Rxe8+ {[%clk 0:02:15.9]} 20...
Rxe8 {[%clk 0:02:23.9]} 21. Ne4 {[%clk 0:02:15.4]} 21... Be5 {[%clk 0:02:22.8]}
22. Bc3 {[%clk 0:02:09.3]} 22... Nd6 {[%clk 0:02:09.4]} 23. Bxe5 {[%clk
0:02:04.2]} 23... Rxe5 {[%clk 0:02:10.3]} 24. Nc3 {[%clk 0:02:03.8]} 24... b5
{[%clk 0:02:01.7]} 25. Kd2 {[%clk 0:01:59.9]} 25... Nc4+ {[%clk 0:01:58.5]} 26.
Kc1 {[%clk 0:01:59.3]} 26... a5 {[%clk 0:01:58]} 27. Rd1 {[%clk 0:01:53.9]}
27... Nd6 {[%clk 0:01:50.8]} 28. b3 {[%clk 0:01:24]} 28... b4 {[%clk 0:01:48.6]}
29. axb4 {[%clk 0:01:23.3]} 29... axb4 {[%clk 0:01:49.5]} 30. Na4 {[%clk
0:01:20.1]} 30... c5 {[%clk 0:01:46.3]} 31. Kd2 {[%clk 0:01:13.3]} 31... c4
{[%clk 0:01:45.1]} 32. Re1 {[%clk 0:01:10.9]} 32... c3+ {[%clk 0:01:22.5]} 33.
Kd1 {[%clk 0:01:10.6]} 33... Rd5+ {[%clk 0:01:14.9]} 34. Kc1 {[%clk 0:01:10.5]}
34... Rd2 {[%clk 0:01:12.9]} 35. Rg1 {[%clk 0:01:10.8]} 35... Nb7 {[%clk
0:01:10.6]} 36. Nb2 {[%clk 0:01:08.8]} 36... c5 {[%clk 0:01:06.5]} 37. Nc4
{[%clk 0:01:03.4]} 37... Rf2 {[%clk 0:01:02.4]} 38. h4 {[%clk 0:01:00.4]} 38...
Kc7 {[%clk 0:01:00.9]} 39. Ne3 {[%clk 0:00:54.4]} 39... Nd6 {[%clk 0:00:58.1]}
40. h5 {[%clk 0:00:51.1]} 40... Kc6 {[%clk 0:00:56.8]} 41. Kd1 {[%clk
0:00:38.6]} 41... c4 {[%clk 0:00:53.4]} 42. bxc4 {[%clk 0:00:34.3]} 42... Kc5
{[%clk 0:00:53.4]} 43. Re1 {[%clk 0:00:25]} 43... Nxc4 {[%clk 0:00:39.4]} 44.
Nxc4 {[%clk 0:00:24.7]} 44... Kxc4 {[%clk 0:00:40.3]} 45. Re4+ {[%clk
0:00:25.3]} 45... Kb5 {[%clk 0:00:39.3]} 46. Rg4 {[%clk 0:00:25.3]} 46... Ka4
{[%clk 0:00:35.3]} 47. Rxg7 {[%clk 0:00:23.1]} 47... Ka3 {[%clk 0:00:35.4]} 48.
Rg4 {[%clk 0:00:21.3]} 48... b3 {[%clk 0:00:31.6]} 49. cxb3 {[%clk 0:00:21.1]}
49... c2+ {[%clk 0:00:29.2]} 50. Kc1 {[%clk 0:00:20.9]} 50... Kxb3 {[%clk
0:00:29.6]} 0-1

[Event "*** Titled Tuesday Blitz"]
[Site "Chess.com"]
[Date "2020.05.19"]
[Round "3"]
[White "Nikithebest"]
[Black "Kezin_Roman"]
[Result "0-1"]
[WhiteElo "2444"]
[BlackElo "2745"]
[TimeControl "180+1"]
[EndTime "12:28:58 PDT"]
[Termination "Kezin_Roman won on time"]

1. e4 {[%clk 0:03:00.9]} 1... c5 {[%clk 0:02:59.7]} 2. Nf3 {[%clk 0:03:00.6]}
2... e6 {[%clk 0:03:00.2]} 3. d4 {[%clk 0:02:56.6]} 3... cxd4 {[%clk 0:03:01.1]}
4. Nxd4 {[%clk 0:02:57.1]} 4... Nc6 {[%clk 0:03:01.8]} 5. Nc3 {[%clk 0:02:53.1]}
5... Qc7 {[%clk 0:03:02]} 6. Nb3 {[%clk 0:02:53]} 6... a6 {[%clk 0:03:00.7]} 7.
Bd3 {[%clk 0:02:52.2]} 7... Nf6 {[%clk 0:02:59.7]} 8. f4 {[%clk 0:02:52.3]} 8...
d6 {[%clk 0:02:58.7]} 9. Qe2 {[%clk 0:02:52]} 9... b5 {[%clk 0:02:58.7]} 10. Bd2
{[%clk 0:02:45.5]} 10... Bb7 {[%clk 0:02:58.3]} 11. g4 {[%clk 0:02:34.8]} 11...
Nd7 {[%clk 0:02:53.2]} 12. a3 {[%clk 0:02:27.7]} 12... Be7 {[%clk 0:02:46.6]}
13. O-O-O {[%clk 0:02:26.9]} 13... b4 {[%clk 0:02:43.4]} 14. axb4 {[%clk
0:02:22.5]} 14... Nxb4 {[%clk 0:02:44.3]} 15. Kb1 {[%clk 0:02:14]} 15... Rb8
{[%clk 0:02:24.6]} 16. h4 {[%clk 0:02:01.7]} 16... Bc6 {[%clk 0:02:23.6]} 17.
Nd4 {[%clk 0:01:49.1]} 17... Nc5 {[%clk 0:02:22.8]} 18. Nxc6 {[%clk 0:01:47.2]}
18... Qxc6 {[%clk 0:02:23.7]} 19. f5 {[%clk 0:01:37.5]} 19... O-O {[%clk
0:02:21.5]} 20. g5 {[%clk 0:01:37.2]} 20... Nbxd3 {[%clk 0:02:01.3]} 21. cxd3
{[%clk 0:01:37.2]} 21... Rb3 {[%clk 0:01:56.9]} 22. Kc2 {[%clk 0:01:19]} 22...
Rfb8 {[%clk 0:01:44.2]} 23. Rb1 {[%clk 0:01:18.8]} 23... Na4 {[%clk 0:01:44]}
24. Rhc1 {[%clk 0:00:50.6]} 24... Nxb2 {[%clk 0:00:47.6]} 25. d4 {[%clk
0:00:20.1]} 25... Bd8 {[%clk 0:00:44.3]} 26. d5 {[%clk 0:00:18.6]} 26... Qc5
{[%clk 0:00:41.1]} 27. fxe6 {[%clk 0:00:17.2]} 27... Ba5 {[%clk 0:00:41.1]} 28.
exf7+ {[%clk 0:00:17.1]} 28... Kf8 {[%clk 0:00:41.8]} 29. Qf3 {[%clk 0:00:08]}
29... Qc4 {[%clk 0:00:24]} 30. h5 {[%clk 0:00:07]} 30... Na4 {[%clk 0:00:10.7]}
31. Rxb3 {[%clk 0:00:05]} 31... Rxb3 {[%clk 0:00:11.5]} 32. h6 {[%clk
0:00:03.7]} 32... Bxc3 {[%clk 0:00:06]} 33. hxg7+ {[%clk 0:00:01.1]} 33... Bxg7+
{[%clk 0:00:06.9]} 0-1

[Event "*** Titled Tuesday Blitz"]
[Site "Chess.com"]
[Date "2020.05.19"]
[Round "3"]
[White "canary2016"]
[Black "RichardShtivelband"]
[Result "0-1"]
[WhiteElo "1948"]
[BlackElo "2280"]
[TimeControl "180+1"]
[EndTime "12:28:58 PDT"]
[Termination "RichardShtivelband won by resignation"]

1. Nf3 {[%clk 0:03:00.9]} 1... Nf6 {[%clk 0:02:59.4]} 2. g3 {[%clk 0:03:00.8]}
2... d5 {[%clk 0:02:59]} 3. Bg2 {[%clk 0:03:00.9]} 3... Bf5 {[%clk 0:02:57.4]}
4. O-O {[%clk 0:03:00.3]} 4... h6 {[%clk 0:02:57]} 5. d4 {[%clk 0:02:59.9]} 5...
e6 {[%clk 0:02:56.6]} 6. c4 {[%clk 0:02:59.7]} 6... c6 {[%clk 0:02:56.3]} 7. Nc3
{[%clk 0:02:59.4]} 7... Nbd7 {[%clk 0:02:55.6]} 8. Bf4 {[%clk 0:02:59]} 8... Be7
{[%clk 0:02:55]} 9. e3 {[%clk 0:02:59]} 9... O-O {[%clk 0:02:48.1]} 10. Qe2
{[%clk 0:02:58.9]} 10... Ne4 {[%clk 0:02:45.2]} 11. Ne5 {[%clk 0:02:55.5]} 11...
g5 {[%clk 0:02:38.3]} 12. Nxe4 {[%clk 0:02:44.8]} 12... dxe4 {[%clk 0:02:37.4]}
13. g4 {[%clk 0:02:13]} 13... gxf4 {[%clk 0:02:34.4]} 14. gxf5 {[%clk
0:02:12.5]} 14... f3 {[%clk 0:02:34.2]} 15. Bxf3 {[%clk 0:02:08.3]} 15... exf3
{[%clk 0:02:33.3]} 16. Qxf3 {[%clk 0:02:08.3]} 16... Nxe5 {[%clk 0:02:31.8]} 17.
dxe5 {[%clk 0:02:06.9]} 17... Kh7 {[%clk 0:02:29]} 18. Kh1 {[%clk 0:02:06.1]}
18... Rg8 {[%clk 0:02:26.8]} 19. f6 {[%clk 0:02:05.2]} 19... Bf8 {[%clk
0:02:25.9]} 20. Rg1 {[%clk 0:02:03.1]} 20... Rg6 {[%clk 0:02:18.6]} 21. Qe4
{[%clk 0:02:02.2]} 21... Bc5 {[%clk 0:02:12.4]} 22. Rg3 {[%clk 0:01:57.8]} 22...
Qb6 {[%clk 0:02:06.2]} 23. Rag1 {[%clk 0:01:55.3]} 23... Rg8 {[%clk 0:02:05.1]}
24. h4 {[%clk 0:01:49.7]} 24... h5 {[%clk 0:02:04.7]} 25. Rg5 {[%clk 0:01:46.6]}
25... Bf8 {[%clk 0:01:59.9]} 26. Rxh5+ {[%clk 0:01:14.5]} 26... Bh6 {[%clk
0:01:59.4]} 27. Rg3 {[%clk 0:00:58.3]} 27... Qxb2 {[%clk 0:01:46.1]} 28. Qf4
{[%clk 0:00:54.4]} 28... Qb1+ {[%clk 0:01:38.5]} 29. Kh2 {[%clk 0:00:53.4]}
29... b5 {[%clk 0:01:34.8]} 30. Rxh6+ {[%clk 0:00:42.9]} 30... Rxh6 {[%clk
0:01:34.3]} 31. Rxg8 {[%clk 0:00:42.1]} 31... Kxg8 {[%clk 0:01:34]} 32. Qxh6
{[%clk 0:00:41.3]} 32... Qg6 {[%clk 0:01:33.3]} 33. Qxg6+ {[%clk 0:00:37.8]}
33... fxg6 {[%clk 0:01:32.9]} 34. Kg3 {[%clk 0:00:36.9]} 34... b4 {[%clk
0:01:32.3]} 35. Kf4 {[%clk 0:00:31.3]} 35... a5 {[%clk 0:01:31.2]} 36. Ke4
{[%clk 0:00:31]} 36... a4 {[%clk 0:01:31.1]} 37. Kd3 {[%clk 0:00:30.9]} 37... c5
{[%clk 0:01:30.6]} 38. f3 {[%clk 0:00:26]} 38... Kf7 {[%clk 0:01:30.3]} 39. e4
{[%clk 0:00:23.9]} 39... Kg8 {[%clk 0:01:30.1]} 40. f4 {[%clk 0:00:22.3]} 40...
Kf7 {[%clk 0:01:29.9]} 41. f5 {[%clk 0:00:18.9]} 41... exf5 {[%clk 0:01:29.6]}
42. exf5 {[%clk 0:00:18.8]} 42... gxf5 {[%clk 0:01:30]} 43. h5 {[%clk
0:00:18.5]} 43... f4 {[%clk 0:01:30.1]} 44. h6 {[%clk 0:00:18.4]} 44... Kg6
{[%clk 0:01:30.3]} 45. h7 {[%clk 0:00:10.5]} 45... Kxh7 {[%clk 0:01:29.8]} 46.
e6 {[%clk 0:00:10.6]} 46... Kg6 {[%clk 0:01:29.9]} 47. f7 {[%clk 0:00:07.3]}
47... Kg7 {[%clk 0:01:29.4]} 48. Ke4 {[%clk 0:00:04]} 48... b3 {[%clk
0:01:29.3]} 49. axb3 {[%clk 0:00:03.7]} 49... axb3 {[%clk 0:01:29.6]} 50. Kd3
{[%clk 0:00:03.6]} 50... b2 {[%clk 0:01:29.5]} 51. Kc2 {[%clk 0:00:02.9]} 51...
f3 {[%clk 0:01:28.4]} 52. Kxb2 {[%clk 0:00:02.9]} 52... f2 {[%clk 0:01:28.5]}
53. Kc2 {[%clk 0:00:03.1]} 53... f1=Q {[%clk 0:01:28.3]} 54. Kc3 {[%clk
0:00:03]} 54... Qf4 {[%clk 0:01:27]} 55. Kd3 {[%clk 0:00:02.6]} 55... Qd4+
{[%clk 0:01:26.6]} 56. Ke2 {[%clk 0:00:02.5]} 56... Qxc4+ {[%clk 0:01:26.7]} 57.
Kf3 {[%clk 0:00:02.4]} 57... Qxe6 {[%clk 0:01:24.6]} 58. Kg3 {[%clk 0:00:02.7]}
58... Qxf7 {[%clk 0:01:23.7]} 59. Kg4 {[%clk 0:00:02.8]} 59... Qf6 {[%clk
0:01:21.7]} 60. Kg3 {[%clk 0:00:01.8]} 60... Qf5 {[%clk 0:01:21.2]} 61. Kg2
{[%clk 0:00:02]} 61... Qf4 {[%clk 0:01:21]} 62. Kh3 {[%clk 0:00:01.7]} 62... Qg5
{[%clk 0:01:20.7]} 63. Kh2 {[%clk 0:00:01.6]} 63... Qg4 {[%clk 0:01:20.7]} 64.
Kh1 {[%clk 0:00:01.6]} 64... Kf6 {[%clk 0:01:20.7]} 0-1

[Event "*** Titled Tuesday Blitz"]
[Site "Chess.com"]
[Date "2020.05.19"]
[Round "3"]
[White "mjray79"]
[Black "S-Fazulyanov"]
[Result "1-0"]
[WhiteElo "2300"]
[BlackElo "2496"]
[TimeControl "180+1"]
[EndTime "12:29:01 PDT"]
[Termination "mjray79 won by checkmate"]

1. d4 {[%clk 0:03:00.9]} 1... d5 {[%clk 0:02:58.7]} 2. c4 {[%clk 0:03:01.2]}
2... c6 {[%clk 0:02:58.4]} 3. Nf3 {[%clk 0:03:01.4]} 3... Nf6 {[%clk 0:02:58.8]}
4. g3 {[%clk 0:03:01.8]} 4... a6 {[%clk 0:02:59.1]} 5. Bg2 {[%clk 0:02:59.4]}
5... dxc4 {[%clk 0:02:59.2]} 6. Ne5 {[%clk 0:02:56.5]} 6... Nfd7 {[%clk
0:02:55.8]} 7. Nxc4 {[%clk 0:02:53.5]} 7... Nb6 {[%clk 0:02:56.3]} 8. Ne5 {[%clk
0:02:50.8]} 8... N8d7 {[%clk 0:02:56.6]} 9. Nf3 {[%clk 0:02:36.4]} 9... g6
{[%clk 0:02:50.9]} 10. O-O {[%clk 0:02:36.1]} 10... Bg7 {[%clk 0:02:51.5]} 11.
e4 {[%clk 0:02:35.9]} 11... O-O {[%clk 0:02:52.4]} 12. Nc3 {[%clk 0:02:35]}
12... e5 {[%clk 0:02:52.5]} 13. d5 {[%clk 0:02:33.3]} 13... c5 {[%clk
0:02:44.2]} 14. Bg5 {[%clk 0:02:30.4]} 14... f6 {[%clk 0:02:38.3]} 15. Be3
{[%clk 0:02:30.2]} 15... Rf7 {[%clk 0:02:35.4]} 16. Rc1 {[%clk 0:02:28.7]} 16...
Bf8 {[%clk 0:02:35.8]} 17. d6 {[%clk 0:02:13]} 17... Nc4 {[%clk 0:02:33.1]} 18.
Nd5 {[%clk 0:02:07.5]} 18... Nxe3 {[%clk 0:02:25.6]} 19. Nxe3 {[%clk 0:02:07.4]}
19... Nb6 {[%clk 0:02:15.9]} 20. Rxc5 {[%clk 0:02:05.7]} 20... Qxd6 {[%clk
0:02:15.3]} 21. Rc1 {[%clk 0:01:48.5]} 21... Be6 {[%clk 0:02:12.3]} 22. Qe2
{[%clk 0:01:43.4]} 22... Bxa2 {[%clk 0:01:46.5]} 23. Rfd1 {[%clk 0:01:42]} 23...
Qe6 {[%clk 0:01:39.9]} 24. Nd5 {[%clk 0:01:26.9]} 24... Bxd5 {[%clk 0:01:24.7]}
25. exd5 {[%clk 0:01:27.8]} 25... Qd6 {[%clk 0:01:25.3]} 26. Bh3 {[%clk
0:01:15.2]} 26... Rd8 {[%clk 0:01:13.8]} 27. Be6 {[%clk 0:01:13.6]} 27... Kg7
{[%clk 0:01:08.2]} 28. Bxf7 {[%clk 0:01:09.4]} 28... Kxf7 {[%clk 0:01:09.1]} 29.
Qe4 {[%clk 0:01:06.6]} 29... Bh6 {[%clk 0:01:02.5]} 30. Rc2 {[%clk 0:01:03.3]}
30... Re8 {[%clk 0:01:01.4]} 31. g4 {[%clk 0:00:55.3]} 31... Bf4 {[%clk
0:00:55]} 32. h4 {[%clk 0:00:53.8]} 32... Qd7 {[%clk 0:00:44.3]} 33. Nh2 {[%clk
0:00:45.2]} 33... f5 {[%clk 0:00:35]} 34. Qf3 {[%clk 0:00:44.6]} 34... Qa4
{[%clk 0:00:30.3]} 35. Rc7+ {[%clk 0:00:43.2]} 35... Kg8 {[%clk 0:00:25.8]} 36.
d6 {[%clk 0:00:42.3]} 36... e4 {[%clk 0:00:24.6]} 37. Qe2 {[%clk 0:00:39.6]}
37... Rd8 {[%clk 0:00:14.8]} 38. Rxb7 {[%clk 0:00:39.2]} 38... Rxd6 {[%clk
0:00:14.3]} 39. Rxd6 {[%clk 0:00:37.4]} 39... Bxd6 {[%clk 0:00:14.5]} 40. Rxb6
{[%clk 0:00:37.4]} 40... Qd4 {[%clk 0:00:13]} 41. Qe3 {[%clk 0:00:32.1]} 41...
Qe5 {[%clk 0:00:12.4]} 42. Qg3 {[%clk 0:00:25.6]} 42... f4 {[%clk 0:00:07.2]}
43. Qb3+ {[%clk 0:00:23.9]} 43... Kg7 {[%clk 0:00:06.6]} 44. Rb7+ {[%clk
0:00:23.5]} 44... Kh6 {[%clk 0:00:07]} 45. g5+ {[%clk 0:00:21.6]} 45... Kh5
{[%clk 0:00:07.2]} 46. Rxh7# {[%clk 0:00:21.6]} 1-0